fUST/lending_fUST_20240201
["ID","MTS","AMOUNT","RATE_DAILY","PERIOD"]
[313109019,1706755839624,-176.07121414,0.00022189,2]
[313109020,1706755839633,-635.64207882,0.00022189,2]
[313109021,1706755839642,-155.40309156,0.00022189,2]
[313109022,1706755839651,-155.35064667,0.00022189,2]
[313109023,1706755839661,-500.0,0.00022189,2]
[313109024,1706755839670,-500.0,0.00022189,2]
[313109025,1706755839679,-500.0,0.00022189,2]
[313109026,1706755839688,-899.51,0.00022189,2]
[313109027,1706755839697,-1120.18,0.00022189,2]
[313109028,1706755839706,-337.79037108,0.0002219,2]
[313109029,1706755839715,-9758.58170293,0.0002219,2]
[313109030,1706755839724,-500.0,0.0002219,2]
[313109031,1706755839733,-6138.13119635,0.00022191,2]
[313109032,1706755839742,-685.29221933,0.00022191,2]
[313109033,1706755839751,-1829.31848174,0.00022191,2]
[313109034,1706755839759,-300.0,0.00022191,2]
[313109035,1706755839767,-2088.24989888,0.00022191,2]
[313109036,1706755839776,-284860.37823719,0.00022191,2]
[313109037,1706755839785,-1584.57551026,0.00022199,2]
[313109038,1706755839794,-500.0,0.00022421,2]
[313109039,1706755839804,-1257.03,0.00022421,2]
[313109040,1706755839814,-500.0,0.00022421,2]
[313109041,1706755839824,-623.91,0.00022421,2]
[313109042,1706755839834,-382.17927722,0.00022421,2]
[313109043,1706755839844,-166.666666,0.00022431,2]
[313109044,1706755839853,-500.0,0.00022463,2]
[313109045,1706755839864,-500.0,0.00022463,2]
[313109046,1706755839873,-500.0,0.00022463,2]
[313109047,1706755839882,-899.51,0.00022463,2]
[313109048,1706755839891,-1120.18,0.00022463,2]
[313109049,1706755839900,-316.41510336,0.00022464,2]
[313109050,1706755839909,-500.0,0.00022695,2]
[313109051,1706755839918,-1257.03,0.00022695,2]
[313109052,1706755839927,-500.0,0.00022695,2]
[313109053,1706755839936,-623.91,0.00022695,2]
[313109054,1706755839945,-500.0,0.00022737,2]
[313109055,1706755839954,-500.0,0.00022737,2]
[313109056,1706755839963,-500.0,0.00022737,2]
[313109057,1706755839972,-899.51,0.00022737,2]
[313109058,1706755839981,-1120.18,0.00022737,2]
[313109059,1706755839990,-224.192,0.00022882,2]
[313109060,1706755839999,-224.192,0.00022882,2]
[313109061,1706755840008,-224.192,0.00022882,2]
[313109062,1706755840017,-224.192,0.00022882,2]
[313109063,1706755840027,-224.192,0.00022882,2]
[313109064,1706755840037,-166.666666,0.00022944,2]
[313109065,1706755840046,-500.0,0.00022969,2]
[313109066,1706755840055,-1257.03,0.00022969,2]
[313109067,1706755840065,-500.0,0.00022969,2]
[313109068,1706755840074,-623.91,0.00022969,2]
[313109069,1706755840083,-1248.75685585,0.00023,2]
[313109095,1706755843409,-500.0,0.00021051,2]
[313109096,1706755843419,-3888.72,0.00021631,3]
[313109097,1706755843429,-12.93464067,0.00023,2]
[313109098,1706755843438,-4497.67760339,0.00023,2]
[313109180,1706757032597,-1459.81512322,0.00020087,2]
[313109193,1706757038624,-125.33541302,0.00020087,2]
[313109195,1706757038634,-155.01550155,0.00020087,2]
[313109197,1706757038644,-1200.31274669,0.00020088,2]
[313109199,1706757038654,-1780.8399693,0.0002009,2]
[313109201,1706757038665,-2430.84508776,0.00020091,2]
[313109203,1706757038675,-165.55540842,0.000209,2]
[313109206,1706757038685,-17216.0962955,0.00021,2]
[313109207,1706757038695,-4153.17432917,0.00021,2]
[313109209,1706757038704,-597.92,0.0002105,2]
[313109211,1706757038714,-500.0,0.00021051,2]
[313109213,1706757038723,-500.0,0.00021051,2]
[313109215,1706757038733,-466.27657632,0.00021051,2]
[313109217,1706757038742,-507.35740571,0.00021051,2]
[313109219,1706757038751,-966.66,0.00021051,2]
[313109221,1706757038760,-500.0,0.00021051,2]
[313109223,1706757038770,-1217.07,0.00021051,2]
[313109225,1706757038778,-500.0,0.00021051,2]
[313109227,1706757038787,-500.0,0.00021051,2]
[313109230,1706757038797,-1322.96,0.00021051,2]
[313109231,1706757038807,-500.0,0.00021051,2]
[313109234,1706757038817,-500.0,0.00021051,2]
[313109235,1706757038826,-500.0,0.00021051,2]
[313109238,1706757038835,-516.26866858,0.00021051,2]
[313109239,1706757038844,-500.0,0.00021051,2]
[313109242,1706757038854,-500.0,0.00021051,2]
[313109244,1706757038863,-500.0,0.00021051,2]
[313109245,1706757038873,-500.0,0.00021051,2]
[313109247,1706757038882,-500.0,0.00021051,2]
[313109250,1706757038891,-500.0,0.00021051,2]
[313109252,1706757038902,-500.0,0.00021051,2]
[313109253,1706757038911,-500.0,0.00021051,2]
[313109256,1706757038920,-500.0,0.00021051,2]
[313109258,1706757038929,-500.0,0.00021051,2]
[313109259,1706757038938,-500.0,0.00021051,2]
[313109261,1706757038947,-3500.0,0.00021052,2]
[313109264,1706757038956,-875.0,0.00021052,2]
[313109266,1706757038966,-8960.90242893,0.00021052,2]
[313109267,1706757038975,-156.87952244,0.00021052,2]
[313109269,1706757038984,-597.92,0.00021324,2]
[313109272,1706757038993,-500.0,0.00021325,2]
[313109273,1706757039002,-966.66,0.00021325,2]
[313109275,1706757039011,-1217.07,0.00021325,2]
[313109277,1706757039021,-500.0,0.00021325,2]
[313109279,1706757039030,-1322.96,0.00021325,2]
[313109281,1706757039039,-500.0,0.00021325,2]
[313109283,1706757039048,-500.0,0.00021325,2]
[313109286,1706757039059,-500.0,0.00021325,2]
[313109287,1706757039068,-500.0,0.00021325,2]
[313109290,1706757039077,-500.0,0.00021325,2]
[313109291,1706757039087,-500.0,0.00021325,2]
[313109294,1706757039096,-500.0,0.00021325,2]
[313109295,1706757039105,-500.0,0.00021325,2]
[313109298,1706757039114,-500.0,0.00021325,2]
[313109299,1706757039123,-500.0,0.00021325,2]
[313109301,1706757039132,-2566.23,0.00021569,3]
[313109303,1706757039141,-2478.95,0.00021569,3]
[313109305,1706757039150,-2974.74,0.00021579,3]
[313109307,1706757039159,-3695.36,0.00021589,3]
[313109309,1706757039169,-597.92,0.00021598,2]
[313109311,1706757039178,-500.0,0.00021599,2]
[313109313,1706757039187,-966.66,0.00021599,2]
[313109315,1706757039196,-1217.07,0.00021599,2]
[313109317,1706757039206,-500.0,0.00021599,2]
[313109319,1706757039215,-1322.96,0.00021599,2]
[313109321,1706757039226,-500.0,0.00021599,2]
[313109323,1706757039235,-500.0,0.00021599,2]
[313109325,1706757039244,-500.0,0.00021599,2]
[313109327,1706757039253,-500.0,0.00021599,2]
[313109329,1706757039263,-500.0,0.00021599,2]
[313109331,1706757039272,-500.0,0.00021599,2]
[313109333,1706757039281,-500.0,0.00021599,2]
[313109335,1706757039290,-500.0,0.00021599,2]
[313109337,1706757039299,-187.71315844,0.00021773,2]
[313109339,1706757039308,-3000.0,0.000218,2]
[313109341,1706757039317,-597.92,0.00021872,2]
[313109343,1706757039327,-500.0,0.00021873,2]
[313109345,1706757039337,-966.66,0.00021873,2]
[313109347,1706757039346,-1217.07,0.00021873,2]
[313109349,1706757039355,-500.0,0.00021873,2]
[313109351,1706757039364,-1322.96,0.00021873,2]
[313109353,1706757039375,-500.0,0.00021873,2]
[313109355,1706757039385,-500.0,0.00021873,2]
[313109357,1706757039393,-500.0,0.00021873,2]
[313109359,1706757039402,-500.0,0.00021873,2]
[313109361,1706757039411,-500.0,0.00021873,2]
[313109363,1706757039420,-500.0,0.00021873,2]
[313109365,1706757039429,-500.0,0.00021873,2]
[313109367,1706757039438,-492.52543003,0.00021873,2]
[313109369,1706757039447,-166.666666,0.00021918,2]
[313109371,1706757039456,-2037.9288444,0.00022,2]
[313109373,1706757039465,-426.74292046,0.00022145,2]
[313109375,1706757039475,-597.92,0.00022146,2]
[313109377,1706757039484,-500.0,0.00022147,2]
[313109379,1706757039494,-966.66,0.00022147,2]
[313109381,1706757039505,-1217.07,0.00022147,2]
[313109383,1706757039515,-500.0,0.00022147,2]
[313109385,1706757039524,-1322.96,0.00022147,2]
[313109387,1706757039533,-500.0,0.00022147,2]
[313109389,1706757039542,-500.0,0.00022147,2]
[313109391,1706757039551,-500.0,0.00022147,2]
[313109393,1706757039561,-500.0,0.00022147,2]
[313109395,1706757039571,-500.0,0.00022147,2]
[313109397,1706757039580,-597.92,0.0002242,2]
[313109399,1706757039590,-316.41510336,0.00022421,2]
[313109401,1706757039599,-966.66,0.00022421,2]
[313109403,1706757039607,-1217.07,0.00022421,2]
[313109405,1706757039616,-500.0,0.00022421,2]
[313109407,1706757039626,-1322.96,0.00022421,2]
[313109409,1706757039636,-500.0,0.00022421,2]
[313109411,1706757039646,-500.0,0.00022421,2]
[313109413,1706757039657,-500.0,0.00022421,2]
[313109415,1706757039668,-500.0,0.00022421,2]
[313109417,1706757039683,-382.17927722,0.00022421,2]
[313109419,1706757039693,-166.666666,0.00022431,2]
[313109421,1706757039703,-597.92,0.00022694,2]
[313109423,1706757039713,-966.66,0.00022695,2]
[313109425,1706757039722,-1217.07,0.00022695,2]
[313109427,1706757039732,-500.0,0.00022695,2]
[313109429,1706757039741,-1322.96,0.00022695,2]
[313109431,1706757039750,-500.0,0.00022695,2]
[313109434,1706757039760,-500.0,0.00022695,2]
[313109436,1706757039770,-500.0,0.00022695,2]
[313109438,1706757039779,-500.0,0.00022695,2]
[313109440,1706757039788,-14963.74784658,0.00022768,2]
[313109441,1706757039798,-224.192,0.00022882,2]
[313109443,1706757039807,-224.192,0.00022882,2]
[313109445,1706757039816,-224.192,0.00022882,2]
[313109448,1706757039826,-224.192,0.00022882,2]
[313109449,1706757039835,-224.192,0.00022882,2]
[313109451,1706757039845,-151.93956026,0.00022885,2]
[313109453,1706757039855,-166.666666,0.00022944,2]
[313109456,1706757039865,-597.92,0.00022968,2]
[313109458,1706757039874,-966.66,0.00022969,2]
[313109459,1706757039883,-1217.07,0.00022969,2]
[313109461,1706757039892,-500.0,0.00022969,2]
[313109463,1706757039902,-1322.96,0.00022969,2]
[313109466,1706757039912,-500.0,0.00022969,2]
[313109468,1706757039921,-500.0,0.00022969,2]
[313109469,1706757039930,-500.0,0.00022969,2]
[313109471,1706757039939,-500.0,0.00022969,2]
[313109473,1706757039948,-155.40309156,0.00022998,2]
[313109476,1706757039957,-635.64207882,0.00022998,2]
[313109478,1706757039967,-155.35064667,0.00022998,2]
[313109479,1706757039976,-176.07121414,0.00022998,2]
[313109481,1706757039985,-2724.21320407,0.00022998,2]
[313109484,1706757039994,-681.46601652,0.00022998,2]
[313109485,1706757040003,-367.26434854,0.00022998,2]
[313109487,1706757040012,-691.29323781,0.00022998,2]
[313109489,1706757040021,-167.80837544,0.00022998,2]
[313109502,1706757040127,-350.60896108,0.00022999,2]
[313109504,1706757040136,-9758.58170293,0.00022999,2]
[313109506,1706757040146,-337.79037108,0.00022999,2]
[313109508,1706757040156,-5459.21844041,0.00023,2]
[313109510,1706757040165,-300.0,0.00023,2]
[313109512,1706757040174,-2088.24989888,0.00023,2]
[313109514,1706757040184,-6138.13119635,0.00023,2]
[313109516,1706757040193,-685.29221933,0.00023,2]
[313109518,1706757040202,-1829.31848174,0.00023,2]
[313109521,1706757040212,-240387.65721081,0.00023,2]
[313109523,1706757040225,-1418.83056676,0.00023,2]
[313109932,1706757043631,-2930.27904631,0.00023,2]
[313110913,1706757524620,10000.0,0.00029,30]
[313110914,1706757557459,620.0,0.0003,120]
[313111298,1706758237797,-155.01395126,0.00020899,2]
[313111299,1706758237807,-222.04435732,0.000209,2]
[313111300,1706758237905,-1212.5555899,0.000209,2]
[313111579,1706758259392,155.00930056,0.00021727,4]
[313111580,1706758279388,155.00930056,0.00021727,4]
[313111599,1706758835076,200.0,0.00021999,7]
[313111600,1706758848368,637.05325024,0.0002199,7]
[313111609,1706759431965,-155.01550155,0.00017974,2]
[313111610,1706759431975,-2042.45805917,0.00017975,2]
[313111612,1706759431985,-302.47163641,0.00017976,2]
[313111613,1706759431994,-155.01550155,0.00017976,2]
[313111615,1706759432003,-1775.26466003,0.00017977,2]
[313111618,1706759432013,-273.07369452,0.00017977,2]
[313111620,1706759432023,-905.14866283,0.00017978,2]
[313111621,1706759432031,-155.00930056,0.00017998,3]
[313111624,1706759432041,-1585.15053624,0.00019,2]
[313111625,1706759432050,-168.338537,0.00019721,2]
[313111628,1706759432059,-4991.20146504,0.0001989,2]
[313111629,1706759432068,-165.55540842,0.00019899,2]
[313111631,1706759432077,-6227.5,0.0001999,3]
[313111632,1706759432086,-5189.58,0.0001999,3]
[313111633,1706759432095,-455.2446632,0.00019998,2]
[313111634,1706759432104,-5294.26827455,0.00019998,2]
[313111635,1706759432114,-1248.30683045,0.00019998,2]
[313111636,1706759432123,-471.98746665,0.00019998,2]
[313111637,1706759432132,-3840.07445734,0.00019998,2]
[313111638,1706759432142,-563.94261902,0.00019999,2]
[313111639,1706759432151,-466.27657632,0.00019999,2]
[313111640,1706759432160,-500.0,0.00019999,2]
[313111641,1706759432169,-500.0,0.00019999,2]
[313111642,1706759432178,-566.9892121,0.00019999,2]
[313111643,1706759432188,-500.0,0.00019999,2]
[313111644,1706759432197,-524.41,0.00019999,2]
[313111645,1706759432206,-500.0,0.00019999,2]
[313111646,1706759432214,-1723.89,0.00019999,2]
[313111647,1706759432223,-500.0,0.00019999,2]
[313111648,1706759432241,-500.0,0.00019999,2]
[313111649,1706759432255,-500.0,0.00019999,2]
[313111650,1706759432264,-500.0,0.00019999,2]
[313111651,1706759432274,-1136.04,0.00019999,2]
[313111652,1706759432284,-500.0,0.00019999,2]
[313111653,1706759432294,-500.0,0.00019999,2]
[313111654,1706759432304,-748.69,0.00019999,2]
[313111655,1706759432314,-500.0,0.00019999,2]
[313111656,1706759432324,-500.0,0.00019999,2]
[313111657,1706759432334,-500.0,0.00019999,2]
[313111658,1706759432344,-500.0,0.00019999,2]
[313111659,1706759432353,-500.0,0.00019999,2]
[313111660,1706759432363,-500.0,0.00019999,2]
[313111661,1706759432373,-500.0,0.00019999,2]
[313111662,1706759432382,-500.0,0.00019999,2]
[313111663,1706759432392,-500.0,0.00019999,2]
[313111664,1706759432403,-1262.87,0.00019999,2]
[313111665,1706759432412,-500.0,0.00019999,2]
[313111666,1706759432422,-680.01303789,0.0002,2]
[313111667,1706759432432,-1200.31274669,0.0002,2]
[313111668,1706759432442,-23064.94036296,0.0002,2]
[313111681,1706759438095,-26935.79338099,0.0002,2]
[313111682,1706759438105,-155.00930056,0.0002,2]
[313111683,1706759438114,-500.0,0.00020273,2]
[313111684,1706759438124,-500.0,0.00020273,2]
[313111685,1706759438134,-524.41,0.00020273,2]
[313111686,1706759438143,-500.0,0.00020273,2]
[313111687,1706759438152,-1723.89,0.00020273,2]
[313111688,1706759438162,-500.0,0.00020273,2]
[313111689,1706759438171,-507.67886997,0.00020273,2]
[313111690,1706759438180,-500.0,0.00020273,2]
[313111691,1706759438189,-500.0,0.00020273,2]
[313111692,1706759438200,-1136.04,0.00020273,2]
[313111693,1706759438209,-500.0,0.00020273,2]
[313111694,1706759438219,-748.69,0.00020273,2]
[313111695,1706759438228,-500.0,0.00020273,2]
[313111696,1706759438240,-500.0,0.00020273,2]
[313111697,1706759438249,-500.0,0.00020273,2]
[313111698,1706759438259,-500.0,0.00020273,2]
[313111699,1706759438268,-500.0,0.00020273,2]
[313111700,1706759438278,-500.0,0.00020273,2]
[313111701,1706759438288,-500.0,0.00020273,2]
[313111702,1706759438297,-500.0,0.00020273,2]
[313111703,1706759438306,-500.0,0.00020273,2]
[313111704,1706759438316,-1262.87,0.00020273,2]
[313111705,1706759438326,-500.0,0.00020273,2]
[313111706,1706759438335,-500.0,0.00020547,2]
[313111707,1706759438344,-524.41,0.00020547,2]
[313111708,1706759438354,-500.0,0.00020547,2]
[313111709,1706759438363,-1723.89,0.00020547,2]
[313111710,1706759438373,-500.0,0.00020547,2]
[313111711,1706759438382,-1136.04,0.00020547,2]
[313111712,1706759438391,-500.0,0.00020547,2]
[313111713,1706759438400,-748.69,0.00020547,2]
[313111714,1706759438409,-500.0,0.00020547,2]
[313111715,1706759438418,-500.0,0.00020547,2]
[313111716,1706759438427,-500.0,0.00020547,2]
[313111717,1706759438436,-500.0,0.00020547,2]
[313111718,1706759438445,-500.0,0.00020547,2]
[313111719,1706759438455,-500.0,0.00020547,2]
[313111720,1706759438465,-1262.87,0.00020547,2]
[313111721,1706759438475,-500.0,0.00020547,2]
[313111722,1706759438484,-500.0,0.00020821,2]
[313111723,1706759438493,-524.41,0.00020821,2]
[313111724,1706759438502,-500.0,0.00020821,2]
[313111725,1706759438512,-1723.89,0.00020821,2]
[313111726,1706759438521,-500.0,0.00020821,2]
[313111727,1706759438530,-1136.04,0.00020821,2]
[313111728,1706759438539,-500.0,0.00020821,2]
[313111729,1706759438548,-748.69,0.00020821,2]
[313111730,1706759438557,-500.0,0.00020821,2]
[313111731,1706759438567,-500.0,0.00020821,2]
[313111732,1706759438577,-500.0,0.00020821,2]
[313111733,1706759438586,-500.0,0.00020821,2]
[313111734,1706759438596,-500.0,0.00020821,2]
[313111735,1706759438606,-1262.87,0.00020821,2]
[313111736,1706759438615,-500.0,0.00020821,2]
[313111737,1706759438625,-4324.65,0.00020829,3]
[313111738,1706759438634,-14963.74784658,0.0002084,2]
[313111739,1706759438644,-187.71315844,0.00020949,2]
[313111740,1706759438654,-1526.88,0.00021049,2]
[313111741,1706759438664,-286.54772516,0.0002105,2]
[313111742,1706759438673,-155.58573579,0.0002105,2]
[313111743,1706759438682,-155.71294107,0.0002105,2]
[313111744,1706759438691,-845.09781124,0.0002105,2]
[313111745,1706759438702,-156.37603397,0.0002105,2]
[313111746,1706759438712,-155.28254137,0.0002105,2]
[313111747,1706759438722,-2350.48782787,0.0002105,2]
[313111748,1706759438731,-590.51766949,0.0002105,2]
[313111749,1706759438740,-155.40309156,0.0002105,2]
[313111750,1706759438750,-350.60896108,0.0002105,2]
[313111751,1706759438759,-2724.21320407,0.0002105,2]
[313111752,1706759438768,-635.64207882,0.0002105,2]
[313111753,1706759438778,-167.80837544,0.0002105,2]
[313111754,1706759438787,-691.29323781,0.0002105,2]
[313111755,1706759438796,-176.07121414,0.0002105,2]
[313111756,1706759438806,-155.35064667,0.0002105,2]
[313111757,1706759438815,-298.53839646,0.00021051,2]
[313111758,1706759438824,-156.95322835,0.00021051,2]
[313111759,1706759438834,-410.52019139,0.00021051,2]
[313111760,1706759438843,-5000.0,0.00021052,2]
[313111761,1706759438852,-240.625,0.00021052,2]
[313111762,1706759438861,-34120.58870774,0.00021052,2]
[313111763,1706759438871,-73354.13257286,0.00021052,2]
[313111764,1706759438880,-3484.32129721,0.00021052,2]
[313111765,1706759438889,-5000.0,0.00021052,2]
[313111766,1706759438898,-5000.0,0.00021052,2]
[313111767,1706759438908,-187.55984196,0.00021052,2]
[313111768,1706759438918,-5000.0,0.00021052,2]
[313111769,1706759438928,-151.0,0.00021052,2]
[313111770,1706759438939,-2470.2787895,0.00021052,2]
[313111771,1706759438949,-500.0,0.00021095,2]
[313111772,1706759438958,-524.41,0.00021095,2]
[313111773,1706759438967,-500.0,0.00021095,2]
[313111774,1706759438977,-1723.89,0.00021095,2]
[313111775,1706759438986,-500.0,0.00021095,2]
[313111776,1706759438995,-1136.04,0.00021095,2]
[313111777,1706759439004,-500.0,0.00021095,2]
[313111778,1706759439014,-748.69,0.00021095,2]
[313111779,1706759439023,-500.0,0.00021095,2]
[313111780,1706759439032,-500.0,0.00021095,2]
[313111781,1706759439042,-500.0,0.00021095,2]
[313111782,1706759439051,-500.0,0.00021095,2]
[313111783,1706759439061,-500.0,0.00021095,2]
[313111784,1706759439070,-1262.87,0.00021095,2]
[313111785,1706759439079,-500.0,0.00021095,2]
[313111786,1706759439089,-1526.88,0.00021323,2]
[313111787,1706759439098,-541.26644689,0.00021369,2]
[313111788,1706759439107,-524.41,0.00021369,2]
[313111789,1706759439117,-500.0,0.00021369,2]
[313111790,1706759439126,-1723.89,0.00021369,2]
[313111791,1706759439136,-500.0,0.00021369,2]
[313111792,1706759439145,-1136.04,0.00021369,2]
[313111793,1706759439155,-500.0,0.00021369,2]
[313111794,1706759439164,-748.69,0.00021369,2]
[313111795,1706759439174,-500.0,0.00021369,2]
[313111796,1706759439183,-500.0,0.00021369,2]
[313111797,1706759439193,-500.0,0.00021369,2]
[313111798,1706759439204,-500.0,0.00021369,2]
[313111799,1706759439213,-500.0,0.00021369,2]
[313111800,1706759439223,-1262.87,0.00021369,2]
[313111801,1706759439233,-500.0,0.00021369,2]
[313111802,1706759439245,-6009.13285377,0.00021394,2]
[313111803,1706759439255,-151.0,0.00021394,2]
[313111804,1706759439264,-1526.88,0.00021597,2]
[313111805,1706759439274,-157.011484,0.00021643,2]
[313111806,1706759439285,-524.41,0.00021643,2]
[313111807,1706759439295,-500.0,0.00021643,2]
[313111808,1706759439304,-1723.89,0.00021643,2]
[313111809,1706759439315,-1580.710543,0.00021643,2]
[313111810,1706759439325,-1580.710543,0.00021643,2]
[313111811,1706759439335,-500.0,0.00021643,2]
[313111812,1706759439345,-1136.04,0.00021643,2]
[313111813,1706759439467,-500.0,0.00021643,2]
[313111814,1706759439479,-748.69,0.00021643,2]
[313111815,1706759439489,-500.0,0.00021643,2]
[313111816,1706759439499,-500.0,0.00021643,2]
[313111817,1706759439508,-500.0,0.00021643,2]
[313111818,1706759439518,-500.0,0.00021643,2]
[313111819,1706759439529,-500.0,0.00021643,2]
[313111820,1706759439539,-1262.87,0.00021643,2]
[313111821,1706759439547,-500.0,0.00021643,2]
[313111822,1706759439557,-151.0,0.00021727,2]
[313111823,1706759439566,-151.0,0.00021727,2]
[313111824,1706759439575,-3000.0,0.000218,2]
[313111825,1706759439584,-151.0,0.000218,2]
[313111826,1706759439594,-151.0,0.000218,2]
[313111827,1706759439603,-151.0,0.00021865,2]
[313111828,1706759439612,-155.528036,0.00021871,2]
[313111829,1706759439621,-1526.88,0.00021871,2]
[313111830,1706759439631,-152.659174,0.00021873,2]
[313111831,1706759439640,-151.93956026,0.0002188,2]
[313111832,1706759439649,-187.71315844,0.0002189,2]
[313111833,1706759439658,-524.41,0.00021917,2]
[313111834,1706759439668,-500.0,0.00021917,2]
[313111835,1706759439678,-1723.89,0.00021917,2]
[313111836,1706759439687,-500.0,0.00021917,2]
[313111837,1706759439698,-1136.04,0.00021917,2]
[313111838,1706759439707,-500.0,0.00021917,2]
[313111839,1706759439716,-748.69,0.00021917,2]
[313111840,1706759439726,-500.0,0.00021917,2]
[313111841,1706759439735,-500.0,0.00021917,2]
[313111842,1706759439744,-500.0,0.00021917,2]
[313111843,1706759439753,-500.0,0.00021917,2]
[313111844,1706759439762,-500.0,0.00021917,2]
[313111845,1706759439771,-1262.87,0.00021917,2]
[313111846,1706759439780,-500.0,0.00021917,2]
[313111847,1706759439789,-166.666666,0.00021918,2]
[313111848,1706759439798,-153.0,0.00021918,2]
[313111849,1706759439807,-151.82740149,0.00021946,2]
[313111850,1706759439816,-500.0,0.00021989,2]
[313111851,1706759439825,-500.0,0.00021989,2]
[313111852,1706759439834,-500.0,0.00021989,2]
[313111853,1706759439844,-500.0,0.00021989,2]
[313111854,1706759439853,-500.0,0.00021989,2]
[313111855,1706759439862,-547.9555091,0.00021989,2]
[313111856,1706759439872,-500.0,0.00021989,2]
[313111857,1706759439881,-500.0,0.00021989,2]
[313111858,1706759439890,-500.0,0.00021989,2]
[313111859,1706759439899,-500.0,0.00021989,2]
[313111860,1706759439908,-500.0,0.00021989,2]
[313111861,1706759439917,-548.67519183,0.00021989,2]
[313111862,1706759439926,-500.0,0.00021989,2]
[313111863,1706759439935,-500.0,0.00021989,2]
[313111864,1706759439945,-500.0,0.00021989,2]
[313111865,1706759439954,-500.0,0.00021989,2]
[313111866,1706759439963,-500.0,0.00021989,2]
[313111867,1706759439972,-500.0,0.00021989,2]
[313111868,1706759439981,-500.0,0.00021989,2]
[313111869,1706759439990,-213.48696973,0.00021989,2]
[313111870,1706759439999,-500.0,0.00021989,2]
[313111871,1706759440008,-500.0,0.00021989,2]
[313111872,1706759440017,-500.0,0.00021989,2]
[313111873,1706759440026,-459.30045149,0.00021989,2]
[313111875,1706759440035,-500.0,0.00021989,2]
[313111876,1706759440045,-500.0,0.00021989,2]
[313111877,1706759440054,-500.0,0.00021989,2]
[313111878,1706759440063,-500.0,0.00021989,2]
[313111879,1706759440073,-500.0,0.00021989,2]
[313111880,1706759440082,-192.44986588,0.00021989,2]
[313111881,1706759440092,-500.0,0.00021989,2]
[313111882,1706759440101,-500.0,0.00021989,2]
[313111883,1706759440111,-500.0,0.00021989,2]
[313111884,1706759440120,-256.69344935,0.00021989,2]
[313111885,1706759440129,-500.0,0.00021989,2]
[313111886,1706759440139,-500.0,0.00021989,2]
[313111887,1706759440148,-500.0,0.00021989,2]
[313111888,1706759440157,-500.0,0.00021989,2]
[313111889,1706759440166,-500.0,0.00021989,2]
[313111890,1706759440175,-500.0,0.00021989,2]
[313111891,1706759440185,-457.30469696,0.00021989,2]
[313111892,1706759440194,-500.0,0.00021989,2]
[313111894,1706759440203,-500.0,0.00021989,2]
[313111895,1706759440213,-500.0,0.00021989,2]
[313111896,1706759440222,-500.0,0.00021989,2]
[313111897,1706759440232,-500.0,0.00021989,2]
[313111898,1706759440243,-500.0,0.00021989,2]
[313111899,1706759440252,-500.0,0.00021989,2]
[313111900,1706759440262,-500.0,0.00021989,2]
[313111901,1706759440271,-500.0,0.00021989,2]
[313111902,1706759440281,-500.0,0.00021989,2]
[313111903,1706759440290,-500.0,0.00021989,2]
[313111905,1706759440300,-500.0,0.00021989,2]
[313111907,1706759440309,-500.0,0.00021989,2]
[313111910,1706759440320,-500.0,0.00021989,2]